bitfinex/quotes_ETHUSD_20250524
["timestamp","ask_amount","ask_price","bid_price","bid_amount"]
[1748059881805,3.92742125,2546.2,2546.1,0.05]
[1748059882007,7.1827446,2546.2,2546.1,0.05]
[1748059882305,7.7327446,2546.2,2546.1,0.05]
[1748059882905,3.9275755,2546.1,2545.1,0.05]
[1748059883108,0.8296,2545.3,2545.2,11.757]
[1748059885451,0.8296,2545.3,2545.2,43.417]
[1748059886059,0.8296,2545.3,2545.2,43.42]
[1748059888715,0.8296,2545.3,2545.2,43.422]
[1748059889760,0.7584,2545.6,2545.2,43.422]
[1748059890669,0.7584,2546.4,2545.3,0.03928647]
[1748059891069,0.7584,2546.4,2545.4,0.792]
[1748059891250,3.92727203,2546.3,2545.4,0.792]
[1748059891449,0.4685672,2546.2,2545.4,0.792]
[1748059891840,4.68558867,2546.4,2545.4,0.792]
[1748059892171,3.92731475,2546.3,2545.4,0.792]
[1748059892571,0.7584,2546.4,2545.5,0.03927808]
[1748059892763,0.7584,2546.4,2545.4,0.792]
[1748059893657,14.11688003,2546.6,2545.4,0.792]
[1748059893864,10.19,2546.6,2545.4,0.8134]
[1748059895176,10.19,2546.6,2545.5,31.669]
[1748059895379,10.19,2546.6,2545.6,0.8134]
[1748059895749,1.15383234,2546.7,2545.6,0.8134]
[1748059895938,4.75464204,2546.9,2545.6,0.8134]
[1748059896139,4.75464204,2546.9,2545.7,0.8134]
[1748059896334,0.8283,2546.9,2545.7,0.8134]
[1748059897463,3.92606552,2547.1,2545.8,0.8134]
[1748059897671,3.92606552,2547.1,2545.8,0.8526675]
[1748059898068,0.8283,2547.3,2546.0,0.7803]
[1748059898270,0.8283,2547.3,2546.2,8.0]
[1748059898462,4.75404126,2547.3,2546.3,0.7803]
[1748059898778,16.58062841,2547.5,2546.3,0.7803]
[1748059899085,10.19,2547.5,2546.3,0.7803]
[1748059899600,3.92559993,2547.4,2546.3,0.7803]
[1748059899769,14.11552985,2547.5,2546.3,0.7803]
[1748059900184,10.19,2547.5,2546.3,0.7803]
[1748059900708,3.92511307,2547.7,2546.5,0.7803]
[1748059900865,5.04359838,2547.7,2546.7,0.7803]
[1748059902296,3.92527044,2547.6,2546.7,0.7803]
[1748059902696,2.46512335,2547.6,2546.8,11.762]
[1748059903012,3.92588027,2547.2,2546.8,11.762]
[1748059903611,3.92577666,2547.3,2546.8,11.762]
[1748059905184,3.92597201,2547.2,2546.9,16.935]
[1748059905390,4.64666505,2547.4,2547.0,11.761]
[1748059905391,3.92603352,2547.1,2547.0,11.761]
[1748059905695,3.92595757,2547.2,2547.0,26.632]
[1748059906290,3.92578116,2547.3,2547.0,26.632]
[1748059906614,4.36554521,2547.3,2547.0,26.632]
[1748059907269,0.72104945,2547.4,2547.0,26.632]
[1748059907510,4.64669492,2547.4,2547.0,26.632]
[1748059907819,3.92564547,2547.4,2547.0,26.632]
[1748059907975,3.92578033,2547.3,2547.0,26.632]
[1748059908315,3.92578033,2547.3,2546.9,16.935]
[1748059908316,3.92618767,2547.0,2546.9,16.935]
[1748059908498,3.92618767,2547.0,2546.9,43.566]
[1748059908499,14.39131102,2547.0,2546.9,43.566]
[1748059908668,16.30320999,2547.0,2546.9,43.566]
[1748059911714,9.91189897,2547.0,2546.9,43.566]
[1748059911916,8.0,2547.0,2546.9,43.566]
[1748059913320,10.46512335,2547.3,2546.9,43.566]
[1748059913726,3.92618767,2547.0,2546.9,43.566]
[1748059915847,3.92611198,2547.1,2546.9,43.566]
[1748059916058,1.14655391,2547.2,2546.9,43.566]
[1748059916059,4.28936448,2547.2,2546.9,43.566]
[1748059916237,3.92587939,2547.2,2546.9,43.566]
[1748059916413,4.90336118,2547.2,2546.9,43.566]
[1748059916750,0.97748179,2547.2,2546.9,43.566]
[1748059917046,3.92603673,2547.1,2546.9,43.566]
[1748059917244,3.92618767,2547.0,2546.9,43.566]
[1748059917610,0.97748179,2547.2,2546.9,43.566]
[1748059917907,3.92612009,2547.1,2546.9,43.566]
[1748059918949,3.92618767,2547.0,2546.9,43.566]
[1748059920450,4.29130147,2547.0,2546.9,43.566]
[1748059921254,3.92618767,2547.0,2546.9,43.566]
[1748059921416,4.29130056,2547.0,2546.9,43.566]
[1748059923547,0.36511289,2547.0,2546.9,43.566]
[1748059924650,4.29130056,2547.0,2546.9,43.566]
[1748059924843,12.81816529,2547.0,2546.9,43.566]
[1748059927053,12.81816529,2547.0,2546.9,31.806]
[1748059927248,12.81816529,2547.0,2546.9,43.566]
[1748059931177,4.81816529,2547.0,2546.9,43.566]
[1748059932600,5.59936529,2547.0,2546.9,16.935]
[1748059932796,6.14936529,2547.0,2546.9,43.519]
[1748059935587,14.14936529,2547.0,2546.9,31.758]
[1748059935795,15.33471671,2547.0,2546.9,43.519]
[1748059935966,14.14936529,2547.0,2546.9,43.519]
[1748059936146,14.14936529,2547.0,2546.9,31.758]
[1748059936693,14.14936529,2547.0,2546.9,43.519]
[1748059937194,24.33936529,2547.0,2546.9,43.519]
[1748059937395,25.52471671,2547.0,2546.9,43.52]
[1748059941967,25.52471671,2547.0,2546.9,31.758]
[1748059942167,25.52471671,2547.0,2546.9,43.52]
[1748059943312,24.33936529,2547.0,2546.9,43.52]
[1748059943664,25.52471671,2547.0,2546.9,43.52]
[1748059944011,24.33936529,2547.0,2546.9,43.52]
[1748059944811,25.52471671,2547.0,2546.9,43.52]
[1748059945647,24.33936529,2547.0,2546.9,43.52]
[1748059945941,25.52471671,2547.0,2546.9,43.52]
[1748059946471,24.33936529,2547.0,2546.9,43.52]
[1748059947231,25.52471671,2547.0,2546.9,43.52]
[1748059948696,24.33936529,2547.0,2546.9,43.52]
[1748059950107,24.33961118,2547.0,2546.9,43.52]
[1748059950836,23.55841118,2547.0,2546.9,43.52]
[1748059955286,24.7437626,2547.0,2546.9,43.52]
[1748059955642,23.55841118,2547.0,2546.9,43.52]
[1748059955848,24.7437626,2547.0,2546.9,43.52]
[1748059956285,23.55841118,2547.0,2546.9,43.52]
[1748059956889,23.55841118,2547.0,2546.9,31.758]
[1748059957182,23.55841118,2547.0,2546.9,43.521]
[1748059957352,25.5077626,2547.0,2546.9,43.521]
[1748059960788,24.32241118,2547.0,2546.9,43.521]
[1748059962053,23.00841118,2547.0,2546.9,43.521]
[1748059962453,23.55841118,2547.0,2546.9,43.521]
[1748059964986,23.00841118,2547.0,2546.9,43.521]
[1748059965324,13.47689787,2547.0,2546.9,44.3235]
[1748059966788,13.47689787,2547.0,2546.9,15.4415]
[1748059967890,13.47689787,2547.0,2546.9,27.2045]
[1748059968391,13.47689787,2547.0,2546.9,26.502]
[1748059968691,15.21719218,2547.0,2546.9,26.502]
[1748059971092,13.47689787,2547.0,2546.9,26.502]
[1748059975209,13.47689787,2547.0,2546.9,43.44]
[1748059977306,13.11153909,2547.0,2546.9,43.44]
[1748059977511,13.4775981,2547.0,2546.9,43.44]
[1748059985818,13.4775981,2547.0,2546.9,31.677]
[1748059985979,15.21796243,2547.0,2546.9,43.439]
[1748059986176,17.70961385,2547.0,2546.9,31.677]
[1748059986407,17.70961385,2547.0,2546.9,43.439]
[1748059986807,17.70961385,2547.0,2546.9,31.677]
[1748059987115,27.89961385,2547.0,2546.9,43.439]
[1748059994833,26.71426243,2547.0,2546.9,43.439]
[1748060002567,26.71426243,2547.0,2546.9,31.677]
[1748060002568,27.89961385,2547.0,2546.9,31.677]
[1748060002715,3.92785128,2546.0,2545.5,0.7551]
[1748060002910,1.18535142,2546.0,2545.7,0.7551]
[1748060003106,3.92798913,2545.9,2545.8,11.763]
[1748060004251,3.92803833,2545.8,2545.7,0.7551]
[1748060004413,3.92803833,2545.8,2545.7,12.5181]
[1748060005051,4.29409734,2545.8,2545.7,12.5181]
[1748060005259,4.29409734,2545.8,2545.7,29.4581]
[1748060006558,5.47944876,2545.8,2545.7,17.6951]
[1748060006763,5.47944876,2545.8,2545.7,29.4591]
[1748060007260,5.47944876,2545.8,2545.7,17.6951]
[1748060007565,5.47944876,2545.8,2545.7,29.4591]
[1748060008064,5.47944876,2545.8,2545.7,16.94]
[1748060008065,6.42018446,2545.8,2545.7,16.94]
[1748060008228,6.42018446,2545.8,2545.7,43.387]
[1748060013269,5.47944876,2545.8,2545.7,43.387]
[1748060017655,14.02944876,2545.8,2545.7,31.623]
[1748060017867,14.78014876,2545.8,2545.7,43.389]
[1748060018053,14.78014876,2545.8,2545.7,31.623]
[1748060018263,14.78014876,2545.8,2545.7,43.389]
[1748060018581,16.7694896,2545.8,2545.7,43.389]
[1748060019546,26.9594896,2545.8,2545.7,43.389]
[1748060024385,26.2087896,2545.8,2545.7,43.389]
[1748060028085,26.2087896,2545.8,2545.7,31.623]
[1748060028271,27.0354896,2545.8,2545.7,31.623]
[1748060028447,27.0354896,2545.8,2545.7,43.391]
[1748060033251,27.0354896,2545.8,2545.7,31.623]
[1748060033464,27.0354896,2545.8,2545.7,43.391]
[1748060035597,25.85013818,2545.8,2545.7,43.391]
[1748060035803,26.2087896,2545.8,2545.7,43.391]
[1748060038505,26.2087896,2545.8,2545.7,43.392]
[1748060042174,10.55605901,2545.8,2545.7,44.2178]
[1748060042481,10.55605901,2545.8,2545.7,27.2778]
[1748060042684,0.36605901,2545.8,2545.7,12.5948]
[1748060044099,3.92743461,2546.2,2545.8,0.7817]
[1748060044304,3.92734034,2546.3,2546.0,0.7817]
[1748060044515,11.92734034,2546.3,2546.2,0.7817]
[1748060045077,0.36502909,2546.3,2546.2,0.7817]
[1748060045272,0.36502909,2546.3,2546.2,31.63]
[1748060045501,0.36502909,2546.3,2546.2,15.4657]
[1748060046108,4.29167927,2546.7,2546.3,0.7817]
[1748060046307,4.29167927,2546.7,2546.4,12.5497]
[1748060046486,4.29167927,2546.7,2546.5,0.7817]
[1748060046869,3.92665018,2546.7,2546.5,0.7817]
[1748060047867,5.111578,2547.0,2546.5,0.7817]
[1748060048072,3.92665699,2546.7,2546.5,0.7817]
[1748060050011,3.92655332,2546.8,2546.5,0.7817]
[1748060050988,3.92667871,2546.7,2546.5,0.7817]
[1748060051701,3.92656558,2546.8,2546.5,0.7817]
[1748060051898,0.36377442,2547.0,2546.5,0.7817]
[1748060052213,4.2899729,2547.0,2546.5,0.7817]
[1748060053124,3.92635468,2546.9,2546.5,0.7817]
[1748060053443,3.92625982,2547.0,2546.5,0.7817]
[1748060053647,3.92625982,2547.0,2546.4,11.768]
[1748060053928,3.92625982,2547.0,2546.5,0.8039]
[1748060055196,3.92605359,2547.1,2546.4,11.768]
[1748060055197,3.92635852,2546.9,2546.6,17.7439]
[1748060055392,3.92657395,2546.8,2546.7,14.674]
[1748060055599,3.92657395,2546.8,2546.7,26.438]
[1748060056205,3.92665017,2546.7,2546.6,17.7439]
[1748060056405,3.92665017,2546.7,2546.6,44.1809]
[1748060056615,3.92653623,2546.8,2546.6,44.1809]
[1748060059444,3.92642342,2546.9,2546.6,44.4809]
[1748060059737,3.92642342,2546.9,2546.6,44.1809]
[1748060061133,3.92642342,2546.9,2546.7,14.672]
[1748060061341,3.92649599,2546.8,2546.7,14.672]
[1748060061734,11.92642406,2546.9,2546.7,14.672]
[1748060062961,1.18535142,2547.2,2546.7,14.972]
[1748060063235,3.92607233,2547.1,2546.8,0.7605]
[1748060063547,11.92597935,2547.2,2546.8,0.7605]
[1748060064446,3.92608454,2547.1,2546.8,0.7605]
[1748060064914,8.0,2547.2,2546.8,0.7605]
[1748060065512,11.92588164,2547.2,2546.8,0.7605]
[1748060067144,3.92500136,2547.8,2546.8,0.7605]
[1748060067453,3.92549006,2547.5,2546.8,0.7605]
[1748060068151,3.92572527,2547.3,2546.8,0.7605]
[1748060070906,3.92589572,2547.2,2546.8,0.7605]
[1748060072153,3.9257995,2547.3,2546.8,0.7605]
[1748060075346,3.9257995,2547.3,2546.9,16.934]
[1748060076044,0.36527583,2547.2,2547.0,0.8031]
[1748060076248,0.36527583,2547.2,2547.1,11.76]
[1748060078248,4.29118442,2547.2,2547.0,0.8031]
[1748060078557,4.29118442,2547.2,2547.1,11.76]
[1748060078725,0.36527583,2547.2,2547.1,11.76]
[1748060082762,0.36527583,2547.2,2547.0,0.8031]
[1748060082970,0.36527583,2547.2,2547.1,11.759]
[1748060083270,4.29115522,2547.2,2547.1,11.759]
[1748060083865,0.36527583,2547.2,2547.1,11.759]
[1748060085273,0.36527583,2547.2,2547.1,43.358]
[1748060085785,13.47650664,2547.2,2547.1,43.358]
[1748060087269,13.47650664,2547.2,2547.1,26.424]
[1748060088076,12.29115522,2547.2,2547.1,26.424]
[1748060088369,0.36527583,2547.2,2547.1,26.424]
[1748060093479,4.29115522,2547.2,2547.1,26.424]
[1748060094084,0.36527583,2547.2,2547.1,26.424]
[1748060095384,0.36527583,2547.2,2547.1,43.358]
[1748060098566,4.29115522,2547.2,2547.1,43.358]
[1748060100010,5.47650664,2547.2,2547.1,31.599]
[1748060100307,7.79561698,2547.2,2547.1,43.358]
[1748060101749,6.41671698,2547.2,2547.1,43.358]
[1748060104031,5.23136556,2547.2,2547.1,43.358]
[1748060104236,5.47650664,2547.2,2547.1,43.358]
[1748060105940,5.47650664,2547.2,2547.1,31.599]
[1748060106108,6.02650664,2547.2,2547.1,16.934]
[1748060106311,16.02585806,2547.2,2547.1,43.36]
[1748060106620,15.83573027,2547.2,2547.1,43.36]
[1748060107291,7.83573027,2547.2,2547.1,43.36]
[1748060108333,4.29115522,2547.2,2547.1,43.36]
[1748060108642,5.47650664,2547.2,2547.1,43.36]
[1748060111648,13.47650664,2547.2,2547.1,43.36]
[1748060113614,13.47650664,2547.2,2547.1,44.1548]
[1748060113814,13.47650664,2547.2,2547.1,43.36]
[1748060114032,15.02663466,2547.2,2547.1,16.934]
[1748060114209,15.02663466,2547.2,2547.1,43.362]
[1748060114611,15.02663466,2547.2,2547.1,16.934]
[1748060114920,15.02663466,2547.2,2547.1,43.362]
[1748060115971,15.02663466,2547.2,2547.1,16.934]
[1748060116176,15.02663466,2547.2,2547.1,43.357]
[1748060116684,13.47650664,2547.2,2547.1,43.357]
[1748060117345,5.47650664,2547.2,2547.1,43.357]
[1748060119464,1.55062725,2547.2,2547.1,44.1518]
[1748060121575,5.47650664,2547.2,2547.1,16.934]
[1748060121780,5.47650664,2547.2,2547.1,43.357]
[1748060122547,1.55062725,2547.2,2547.1,43.357]
[1748060122961,5.47650664,2547.2,2547.1,43.357]
[1748060124082,5.47650664,2547.2,2547.1,43.356]
[1748060131038,1.55062725,2547.2,2547.1,43.356]
[1748060132711,5.47650664,2547.2,2547.1,43.356]
[1748060133310,5.47650664,2547.2,2547.1,43.355]
[1748060134312,5.47650664,2547.2,2547.1,16.934]
[1748060134501,5.47650664,2547.2,2547.1,43.355]
[1748060138910,6.86353564,2547.2,2547.1,31.595]
[1748060139078,6.86353564,2547.2,2547.1,43.355]
[1748060139278,6.31353564,2547.2,2547.1,43.355]
[1748060139480,5.47650664,2547.2,2547.1,43.355]
[1748060140116,13.47650664,2547.2,2547.1,43.355]
[1748060144830,5.47650664,2547.2,2547.1,43.355]
[1748060146425,5.47650664,2547.2,2547.1,31.595]
[1748060146624,5.47650664,2547.2,2547.1,43.355]
[1748060151035,5.47650664,2547.2,2547.1,16.934]
[1748060151239,5.47650664,2547.2,2547.1,43.351]
[1748060158782,0.36527583,2547.2,2547.1,43.351]
[1748060159573,0.36527583,2547.2,2547.1,44.1341]
[1748060159886,4.29115522,2547.2,2547.1,44.1341]
[1748060160390,0.36527583,2547.2,2547.1,44.1341]
[1748060160690,4.29115522,2547.2,2547.1,44.1341]
[1748060160904,0.36527583,2547.2,2547.1,44.1341]
[1748060161457,4.29115522,2547.2,2547.1,44.1341]
[1748060161752,5.47650664,2547.2,2547.1,44.1341]
[1748060161944,5.47650664,2547.2,2547.1,43.351]
[1748060163688,5.23930588,2547.2,2547.1,43.351]
[1748060164692,6.9309118,2547.2,2547.1,31.591]
[1748060164853,6.9309118,2547.2,2547.1,43.351]
[1748060166275,6.01440588,2547.2,2547.1,43.351]
[1748060169595,6.01440588,2547.2,2547.1,31.591]
[1748060169794,7.51255654,2547.2,2547.1,31.591]
[1748060170107,6.56440588,2547.2,2547.1,43.351]
[1748060170397,1.31342649,2547.2,2547.1,43.351]
[1748060172015,0.36527583,2547.2,2547.1,44.1416]
[1748060172316,0.36527583,2547.2,2547.1,12.74141618]
[1748060172715,0.36527583,2547.2,2547.1,20.74141618]
[1748060173219,4.92302604,2547.9,2547.2,0.7732]
[1748060173608,3.92496462,2547.8,2547.2,0.7732]
[1748060173810,4.29139078,2547.8,2547.2,0.7732]
[1748060174818,3.92496462,2547.8,2547.2,0.7732]
[1748060175017,4.92306142,2547.9,2547.2,0.7732]
[1748060175185,0.94815066,2547.7,2547.3,31.588]
[1748060175583,0.94815066,2547.7,2547.3,14.655]
[1748060175809,5.15947993,2547.9,2547.3,14.655]
[1748060176006,3.92498513,2547.8,2547.2,0.7732]
[1748060176222,3.9251161,2547.7,2547.2,0.7732]
[1748060176397,3.92537975,2547.6,2547.3,11.759]
[1748060176595,5.11008427,2547.5,2547.4,11.758]
[1748060176825,5.11008427,2547.5,2547.2,0.7732]
[1748060177012,5.11008427,2547.5,2547.3,11.758]
[1748060177321,1.18456917,2547.5,2547.2,0.7732]
[1748060177520,1.18456917,2547.5,2547.3,11.758]
[1748060178226,5.10968527,2547.7,2547.3,11.758]
[1748060178390,1.18456917,2547.7,2547.3,11.758]
[1748060179489,1.23456917,2547.9,2547.3,11.758]
[1748060179695,5.15940445,2547.9,2547.3,11.758]
[1748060180400,0.36591443,2547.8,2547.3,11.758]
[1748060181423,4.29090611,2547.8,2547.3,11.758]
[1748060181628,3.92499168,2547.8,2547.3,11.758]
[1748060182329,1.18456917,2547.7,2547.3,11.758]
[1748060185236,1.18456917,2547.7,2547.4,31.579]
[1748060188435,1.18456917,2547.7,2547.3,11.758]
[1748060190203,1.18456917,2547.7,2547.2,0.7732]
[1748060190204,3.92568834,2547.4,2547.0,0.7995]
[1748060190440,3.92596445,2547.2,2547.1,11.757]
[1748060190641,0.8292,2547.6,2547.1,11.757]
[1748060190949,3.92564761,2547.4,2547.1,11.757]
[1748060191653,4.29163169,2547.3,2547.1,11.757]
[1748060192453,3.92582361,2547.3,2547.1,11.757]
[1748060192651,3.92597653,2547.2,2546.8,0.7995]
[1748060192854,3.92614989,2547.1,2546.9,11.757]
[1748060193150,1.18456917,2547.3,2546.9,11.757]
[1748060193352,5.11043421,2547.3,2546.9,11.757]
[1748060194231,3.92588529,2547.2,2547.0,11.757]
[1748060195253,3.92588529,2547.2,2547.1,31.579]
[1748060198355,4.29189579,2547.2,2547.1,26.406]
[1748060202263,4.29189579,2547.2,2547.1,11.758]
[1748060202467,0.3660105,2547.2,2547.1,11.758]
[1748060202767,0.3660105,2547.2,2547.1,12.5485]
[1748060205148,0.3660105,2547.2,2547.1,44.1305]
[1748060207380,0.3660105,2547.2,2547.1,27.1975]
[1748060209172,0.3660105,2547.2,2547.1,15.4395]
[1748060209381,0.3660105,2547.2,2547.1,27.1985]
[1748060211175,8.3660105,2547.2,2547.1,12.5495]
[1748060212679,0.3660105,2547.2,2547.1,12.5495]
[1748060213542,3.9252918,2547.6,2547.1,12.5495]
[1748060213748,5.10973239,2547.7,2547.1,12.5495]
[1748060213948,9.18456917,2547.7,2547.1,12.5495]
[1748060214369,0.36632004,2547.6,2547.1,12.5495]
[1748060215169,4.29161649,2547.6,2547.2,31.576]
[1748060215371,0.36632004,2547.5,2547.2,31.576]
[1748060216163,0.36632004,2547.4,2547.2,31.576]
[1748060217075,0.05,2547.9,2547.3,0.7971]
[1748060217273,1.23456917,2547.9,2547.4,0.03924958]
[1748060217676,5.15938045,2547.9,2547.4,0.03924958]
[1748060218099,5.15938045,2547.9,2547.3,0.7971]
[1748060218298,1.23456917,2547.9,2547.3,0.7971]
[1748060218503,0.05,2547.9,2547.3,0.7971]
[1748060218706,0.36632151,2547.8,2547.5,0.7759]
[1748060218864,0.36632151,2547.8,2547.6,0.03924316]
[1748060219064,0.36632151,2547.8,2547.7,0.7759]
[1748060219500,0.05,2547.9,2547.7,0.7759]
[1748060225413,0.05,2547.9,2547.8,31.57]
[1748060227821,0.05,2547.9,2547.7,0.7759]
[1748060235251,0.05,2547.9,2547.8,31.567]
[1748060237043,0.05,2547.9,2547.7,0.7759]
[1748060237217,0.05,2547.9,2547.8,11.754]
[1748060238109,0.05,2547.9,2547.8,12.054]
[1748060238351,0.05,2547.9,2547.8,12.5572]
[1748060241338,0.05,2547.9,2547.8,0.8032]
[1748060241543,0.05,2547.9,2547.8,12.5572]
[1748060242646,0.05,2547.9,2547.8,0.8032]
[1748060242954,0.05,2547.9,2547.8,12.5562]
[1748060245359,0.05,2547.9,2547.8,44.1132]
[1748060246758,0.05,2547.9,2547.8,27.1882]
[1748060247654,0.05,2547.9,2547.8,12.5562]
[1748060249357,0.05,2547.9,2547.8,20.5562]
[1748060249736,0.05,2547.9,2547.8,20.93091021]
[1748060250046,0.05,2547.9,2547.8,21.48091021]
[1748060250232,0.05,2547.9,2547.8,21.80855861]
[1748060254363,0.05,2548.9,2548.0,0.55]
[1748060254538,0.05,2548.9,2548.2,0.55]
[1748060254740,0.05,2548.9,2548.3,0.765]
[1748060255150,0.05,2548.9,2548.4,31.552]
[1748060255472,0.05,2548.9,2548.4,32.317]
[1748060256266,0.05,2548.9,2548.4,17.687]
[1748060256767,0.05,2548.9,2548.5,26.381]
[1748060259147,0.05,2548.9,2548.4,0.765]
[1748060259469,0.05,2548.9,2548.5,11.751]
[1748060260246,0.05,2548.9,2548.2,1.10149697]
[1748060260453,0.05,2548.9,2548.3,11.751]
[1748060261983,1.18456917,2548.7,2548.2,0.32759697]
[1748060262138,4.68843076,2548.4,2548.3,11.751]
[1748060262333,0.7644,2548.4,2548.3,11.751]
[1748060262734,5.66809944,2548.4,2548.3,11.751]
[1748060263236,1.74406868,2548.4,2548.3,11.751]
[1748060263441,0.7644,2548.4,2548.3,11.751]
[1748060263838,4.68843076,2548.4,2548.3,11.751]
[1748060264346,5.05435304,2548.4,2548.3,11.751]
[1748060264877,3.92502937,2547.8,2547.1,0.7786]
[1748060265057,4.71085298,2547.9,2547.2,11.752]
[1748060265252,0.786,2547.9,2547.3,31.552]
[1748060265458,0.786,2547.9,2547.4,0.03924571]
[1748060265758,0.786,2547.9,2547.2,11.752]
[1748060265974,4.71080904,2547.9,2547.2,11.752]
[1748060266151,4.71080904,2547.9,2547.3,11.752]
[1748060266679,0.786,2547.9,2547.3,11.752]
[1748060268280,0.786,2547.9,2547.1,0.7786]
[1748060268467,0.7674,2547.8,2547.4,11.753]
[1748060269899,0.7674,2548.2,2547.5,0.03924584]
[1748060270246,0.7674,2548.2,2547.4,12.5485]
[1748060272480,0.7674,2548.5,2547.5,0.7955]
[1748060275190,0.7674,2548.5,2547.6,16.925]
[1748060275369,0.7891,2548.4,2547.7,26.38]
[1748060277182,0.7891,2548.4,2547.7,11.753]
[1748060280970,3.92404557,2548.4,2547.3,0.7882]
[1748060281194,0.796,2548.2,2547.4,11.753]
[1748060281809,0.796,2548.2,2547.3,0.7882]
[1748060282013,3.92436315,2548.2,2547.4,11.753]
[1748060282163,4.72078476,2548.0,2547.1,0.7882]
[1748060282501,4.72078476,2548.0,2547.2,11.753]
[1748060282502,0.796,2547.7,2547.2,11.753]
[1748060283498,0.796,2547.7,2546.8,8.46889376]
[1748060283795,0.796,2547.7,2547.0,8.0]
[1748060284001,0.796,2547.6,2546.9,11.753]
[1748060285420,0.796,2547.6,2547.0,31.553]
[1748060285791,0.796,2547.6,2547.0,14.628]
[1748060286811,0.796,2547.8,2547.1,0.7882]
[1748060287179,0.796,2548.0,2547.1,0.7882]
[1748060291628,0.796,2548.0,2547.3,8.0]
[1748060293724,0.796,2548.0,2547.4,0.03924215]
[1748060293936,0.796,2548.0,2547.3,8.0]
[1748060295137,0.796,2548.0,2547.4,0.03924173]
[1748060295449,0.796,2548.0,2547.5,0.7801]
[1748060298114,0.796,2548.0,2546.9,0.46889376]
[1748060298115,0.796,2548.0,2547.6,11.754]
[1748060304650,0.8037,2548.4,2547.7,0.79863957]
[1748060304856,0.8037,2548.4,2547.8,11.754]
[1748060304857,0.8037,2548.3,2547.8,11.754]
[1748060305242,0.8037,2548.3,2547.9,31.552]
[1748060305761,0.8037,2548.5,2548.0,0.03923679]
[1748060305914,0.8037,2548.5,2547.9,14.626]
[1748060306115,0.05,2548.9,2547.8,11.754]
[1748060306431,0.8037,2548.7,2547.9,1.13405343]
[1748060306630,0.8037,2548.7,2548.0,0.55]
[1748060306844,0.05,2548.9,2548.0,0.55]
[1748060306845,0.8537,2548.9,2548.0,0.55]
[1748060307219,0.8537,2548.9,2547.9,1.13405343]
[1748060307459,0.8537,2548.9,2547.9,9.46168897]
[1748060307763,0.05,2548.9,2547.9,0.70228897]
[1748060307922,3.92348798,2548.8,2548.0,11.754]
[1748060308121,0.8037,2548.7,2548.0,11.754]
[1748060308665,0.7968,2548.6,2548.0,11.754]
[1748060309660,4.7206076,2548.6,2548.0,11.754]
[1748060309860,0.7968,2548.4,2548.0,11.754]
[1748060310556,0.7968,2548.4,2547.3,0.7502]
[1748060310755,0.7968,2548.3,2547.5,8.0]
[1748060311459,0.7968,2548.3,2547.6,11.753]
[1748060312432,0.7968,2548.3,2547.7,8.0]
[1748060314245,0.7968,2548.3,2547.8,0.03923953]
[1748060314440,0.7968,2548.3,2547.7,8.0]
[1748060315129,0.7968,2548.3,2547.8,31.548]
[1748060317198,0.7968,2548.3,2547.8,14.624]
[1748060321259,0.7968,2548.3,2547.7,8.0]
[1748060322292,0.7968,2548.3,2547.5,8.7801]
[1748060322526,0.7968,2548.3,2547.7,8.0]
[1748060323872,0.7968,2548.3,2547.5,8.0]
[1748060324193,0.7968,2548.3,2547.8,11.752]
[1748060325195,0.7968,2548.3,2547.9,31.548]
[1748060327919,0.7968,2548.3,2547.8,11.752]
[1748060329515,0.7968,2548.3,2547.8,12.5766]
[1748060331195,0.05,2548.9,2547.9,8.0]
[1748060331196,0.7551,2548.5,2547.9,8.0]
[1748060331519,0.7551,2548.8,2548.0,0.03923499]
[1748060331832,0.7551,2548.8,2548.1,0.8246]
[1748060332016,0.7551,2548.8,2548.2,0.03922927]
[1748060332390,0.7551,2548.8,2548.1,0.8246]
[1748060332590,0.7551,2548.8,2548.2,0.03922831]
[1748060332827,0.7551,2548.8,2548.1,0.8246]
[1748060333691,0.7551,2548.8,2548.2,0.37461532]
[1748060333902,0.05,2548.9,2548.2,8.37461532]
[1748060334211,0.05,2548.9,2548.3,0.79882682]
[1748060334407,0.05,2548.9,2548.3,0.79882623]
[1748060334735,0.05,2548.9,2548.3,0.7596]
[1748060335233,0.05,2548.9,2548.4,39.624]
[1748060338261,0.05,2548.9,2548.4,0.55]
[1748060340354,0.05,2548.9,2548.3,0.7596]
[1748060340571,0.05,2548.9,2548.4,0.55]
[1748060340855,0.05,2548.9,2548.5,8.0]
[1748060342633,0.05,2548.9,2548.6,0.55]
[1748060345176,0.05,2548.9,2548.7,39.616]
[1748060345580,0.05,2548.9,2548.7,23.5044]
[1748060345733,0.05,2548.9,2548.8,0.55]
[1748060348382,0.05,2548.9,2548.8,1.3485]
[1748060349653,0.05,2548.9,2548.8,15.3685]
[1748060354381,0.05,2548.9,2548.8,15.74073271]
[1748060355201,0.05,2548.9,2548.8,53.92873271]
[1748060355768,0.05,2548.9,2548.8,29.63623271]
[1748060356098,0.05,2548.9,2548.8,0.37223271]
[1748060356400,0.8724,2548.9,2548.8,12.11923271]
[1748060356599,0.8724,2548.9,2548.8,19.747]
[1748060357036,0.8724,2548.9,2548.8,11.747]
[1748060357891,0.8724,2548.9,2548.8,8.0]
[1748060358094,0.8724,2548.9,2548.8,19.746]
[1748060362885,0.05,2548.9,2548.8,19.746]